bitfinex-derivatives/quotes_BTCF0:USTF0_20250905
["timestamp","ask_amount","ask_price","bid_price","bid_amount"]
[1757056606832,0.00704,112500.0,112490.0,1.52009684]
[1757056609437,4e-05,112500.0,112490.0,1.94295503]
[1757056609634,4e-05,112500.0,112490.0,2.26295503]
[1757056609835,0.01237,112510.0,112500.0,0.03666]
[1757056610141,0.01237,112510.0,112500.0,0.91803368]
[1757056610142,0.01227,112510.0,112500.0,0.91803368]
[1757056610939,0.01327,112510.0,112500.0,0.91803368]
[1757056611238,0.01627,112510.0,112500.0,0.91803368]
[1757056611435,0.01627,112510.0,112500.0,1.25690948]
[1757056611636,0.01627,112510.0,112500.0,1.31994077]
[1757056611943,0.01627,112510.0,112500.0,1.23106497]
[1757056612132,0.01627,112510.0,112500.0,1.16803368]
[1757056612333,0.01627,112510.0,112500.0,2.02855368]
[1757056612534,0.01627,112510.0,112500.0,1.16803368]
[1757056612736,0.01627,112510.0,112500.0,1.76818684]
[1757056613040,0.01627,112510.0,112500.0,2.02847368]
[1757056613634,0.01627,112510.0,112500.0,1.16803368]
[1757056614036,0.27655684,112510.0,112500.0,1.52026684]
[1757056614236,0.01627,112510.0,112500.0,1.52026684]
[1757056615044,0.01627,112510.0,112500.0,1.25998]
[1757056615243,0.01627,112510.0,112500.0,1.52026684]
[1757056615440,0.01627,112510.0,112500.0,0.65994684]
[1757056615642,0.01627,112510.0,112500.0,1.52018684]
[1757056615841,0.01627,112510.0,112500.0,1.52002684]
[1757056616534,0.01627,112510.0,112500.0,1.51782684]
[1757056616738,0.01627,112510.0,112500.0,1.52002684]
[1757056618042,0.01627,112510.0,112500.0,1.51978684]
[1757056618245,0.01627,112510.0,112500.0,0.65994684]
[1757056618743,0.01627,112510.0,112500.0,1.51970684]
[1757056619444,0.01627,112510.0,112500.0,0.65774684]
[1757056619648,0.01627,112510.0,112500.0,1.51966684]
[1757056620441,0.01627,112510.0,112500.0,0.65994684]
[1757056620642,0.01627,112510.0,112500.0,1.51726684]
[1757056620843,0.01627,112510.0,112500.0,0.65994684]
[1757056621243,0.01627,112510.0,112500.0,1.51942684]
[1757056621448,0.01627,112510.0,112500.0,0.65994684]
[1757056621642,0.01627,112510.0,112500.0,1.2591]
[1757056621643,0.54902684,112510.0,112500.0,1.2591]
[1757056621946,0.54902684,112510.0,112500.0,1.2569]
[1757056622142,0.54902684,112510.0,112500.0,1.2591]
[1757056622352,0.54902684,112510.0,112500.0,1.51938684]
[1757056622945,0.54902684,112510.0,112500.0,1.2591]
[1757056623342,0.54902684,112510.0,112500.0,0.39966]
[1757056623545,0.52655684,112510.0,112500.0,1.51918684]
[1757056623851,0.01627,112510.0,112500.0,1.77947368]
[1757056624439,0.01627,112510.0,112500.0,2.09250497]
[1757056625747,0.01627,112510.0,112500.0,1.51906684]
[1757056627056,0.01627,112510.0,112500.0,1.25866]
[1757056627354,0.01627,112510.0,112500.0,1.51894684]
[1757056627749,0.01627,112510.0,112500.0,1.84226497]
[1757056628351,0.01627,112510.0,112500.0,0.98326497]
[1757056628753,0.01627,112510.0,112500.0,1.84194497]
[1757056629056,0.01627,112510.0,112500.0,0.98326497]
[1757056629249,0.01627,112510.0,112500.0,1.84194497]
[1757056630651,0.01627,112510.0,112500.0,0.98326497]
[1757056630852,0.01627,112510.0,112500.0,1.58141813]
[1757056631155,0.01627,112510.0,112500.0,1.84170497]
[1757056632049,0.01627,112510.0,112500.0,0.98326497]
[1757056632251,0.01627,112510.0,112500.0,1.58129813]
[1757056632449,0.01627,112510.0,112500.0,1.84158497]
[1757056633053,0.01627,112510.0,112500.0,1.77855368]
[1757056633452,0.01627,112510.0,112500.0,0.92023368]
[1757056633661,0.01627,112510.0,112500.0,1.77851368]
[1757056634161,0.01627,112510.0,112500.0,1.79955185]
[1757056635557,0.01627,112510.0,112500.0,0.94127185]
[1757056635755,0.01627,112510.0,112500.0,1.79919185]
[1757056635956,0.01627,112510.0,112500.0,1.02006978]
[1757056636159,0.01627,112510.0,112500.0,1.61766294]
[1757056636861,0.01627,112510.0,112500.0,1.87794978]
[1757056637561,0.01627,112510.0,112500.0,1.00419409]
[1757056637763,0.01627,112510.0,112500.0,1.86207409]
[1757056637960,0.01627,112510.0,112500.0,1.87794978]
[1757056639763,0.01627,112510.0,112500.0,1.87778978]
[1757056640358,0.01627,112510.0,112500.0,1.61730294]
[1757056641657,0.01627,112510.0,112500.0,1.87758978]
[1757056642864,0.01627,112510.0,112500.0,1.3570161]
[1757056643065,0.01627,112510.0,112500.0,1.87758978]
[1757056643862,0.01627,112510.0,112500.0,1.96646598]
[1757056645068,0.01627,112510.0,112500.0,1.4458923]
[1757056645265,0.01627,112510.0,112500.0,1.96646598]
[1757056645465,0.01627,112510.0,112500.0,1.88766805]
[1757056645663,0.0001,112520.0,112510.0,0.102388]
[1757056645876,0.00014,112530.0,112520.0,0.03746]
[1757056646170,4e-05,112530.0,112520.0,1.59408132]
[1757056646755,4e-05,112530.0,112520.0,1.57833317]
[1757056647361,4e-05,112530.0,112520.0,1.58033317]
[1757056647559,4e-05,112530.0,112520.0,1.51742684]
[1757056647764,4e-05,112530.0,112520.0,1.59608132]
[1757056648262,4e-05,112530.0,112520.0,1.59600629]
[1757056648463,4e-05,112530.0,112520.0,1.59700629]
[1757056648665,4e-05,112530.0,112520.0,1.73557945]
[1757056648864,4e-05,112530.0,112520.0,1.99586629]
[1757056649169,4e-05,112530.0,112520.0,1.40856437]
[1757056649372,4e-05,112530.0,112520.0,1.66885121]
[1757056649564,4e-05,112530.0,112520.0,1.63957993]
[1757056651166,4e-05,112530.0,112520.0,0.55168437]
[1757056651365,4e-05,112530.0,112520.0,1.63901993]
[1757056651573,4e-05,112530.0,112520.0,0.55168437]
[1757056651772,4e-05,112530.0,112520.0,1.40796437]
[1757056651972,4e-05,112530.0,112520.0,1.63897993]
[1757056653273,0.25258556,112530.0,112520.0,0.54948437]
[1757056653473,0.50258556,112530.0,112520.0,0.53593653]
[1757056653675,0.27157,112530.0,112520.0,0.46409161]
[1757056653873,0.50258556,112530.0,112520.0,0.46409161]
[1757056654273,0.50258556,112530.0,112520.0,0.45057161]
[1757056654274,0.28448,112530.0,112520.0,0.45057161]
[1757056654580,0.51549556,112530.0,112520.0,0.45057161]
[1757056654778,0.51549556,112530.0,112520.0,0.44837161]
[1757056654974,0.51549556,112530.0,112520.0,0.45057161]
[1757056655278,0.51549556,112530.0,112520.0,0.44837161]
[1757056655680,0.51549556,112530.0,112520.0,0.38774]
[1757056656185,0.51549556,112530.0,112520.0,0.38554]
[1757056656575,0.51549556,112530.0,112520.0,0.38774]
[1757056656776,0.51549556,112530.0,112520.0,0.38554]
[1757056657275,0.51549556,112530.0,112520.0,0.45057161]
[1757056657980,0.51549556,112530.0,112520.0,0.366]
[1757056658874,0.51549556,112530.0,112520.0,0.0052]
[1757056659075,1.10731112,112530.0,112520.0,0.003]
[1757056659278,0.02887,112520.0,112510.0,0.0002]
[1757056659477,0.03546,112510.0,112500.0,0.361]
[1757056659677,0.02936,112500.0,112490.0,0.361]
[1757056659873,0.26037556,112500.0,112490.0,0.3608]
[1757056660086,0.03444,112490.0,112480.0,0.0002]
[1757056660383,0.02887,112480.0,112470.0,0.3632]
[1757056660575,0.25988556,112480.0,112470.0,0.363]
[1757056660885,0.25688556,112480.0,112470.0,0.363]
[1757056661278,0.50688556,112480.0,112470.0,0.3608]
[1757056661473,1.59322112,112480.0,112470.0,0.3608]
[1757056661677,0.01393,112470.0,112460.0,0.3632]
[1757056661880,1.12171556,112470.0,112460.0,0.363]
[1757056662183,1.37171556,112470.0,112460.0,0.363]
[1757056662371,0.51647556,112470.0,112460.0,0.363]
[1757056662572,1.37171556,112470.0,112460.0,0.363]
[1757056662771,1.1407,112470.0,112460.0,0.363]
[1757056662972,1.37171556,112470.0,112460.0,0.363]
[1757056664486,1.44390536,112470.0,112460.0,0.363]
[1757056665386,1.44390536,112470.0,112460.0,0.364]
[1757056665588,0.58866536,112470.0,112460.0,0.364]
[1757056665888,1.44390536,112470.0,112460.0,0.364]
[1757056667081,1.44366536,112470.0,112460.0,0.364]
[1757056667282,0.58866536,112470.0,112460.0,0.364]
[1757056667485,1.44362536,112470.0,112460.0,0.364]
[1757056667979,1.44358536,112470.0,112460.0,0.364]
[1757056669980,1.44342536,112470.0,112460.0,0.364]
[1757056670282,0.32473536,112470.0,112460.0,0.39929]
[1757056670484,0.87629,112470.0,112460.0,0.39929]
[1757056670882,1.10730556,112470.0,112460.0,0.39929]
[1757056671085,0.02264,112480.0,112470.0,0.03529]
[1757056671286,0.02254,112480.0,112470.0,0.62710556]
[1757056671487,0.02254,112480.0,112470.0,0.39609]
[1757056672788,0.25455556,112480.0,112470.0,0.39609]
[1757056672990,0.25455556,112480.0,112470.0,0.39809]
[1757056673284,0.25355556,112480.0,112470.0,0.40009]
[1757056673585,0.87706,112480.0,112470.0,0.40009]
[1757056675182,1.10807556,112480.0,112470.0,0.40009]
[1757056676092,0.87706,112480.0,112470.0,0.40009]
[1757056676392,1.10807556,112480.0,112470.0,0.40009]
[1757056676593,1.10807556,112480.0,112470.0,0.39909]
[1757056676896,0.87706,112480.0,112470.0,0.39909]
[1757056677194,1.10807556,112480.0,112470.0,0.39709]
[1757056677393,1.60200112,112480.0,112470.0,0.3628]
[1757056677594,1.96280112,112480.0,112470.0,0.002]
[1757056677894,0.0341,112470.0,112460.0,0.0002]
[1757056678094,0.03037,112460.0,112450.0,0.3632]
[1757056678293,1.11538556,112460.0,112450.0,0.363]
[1757056678496,1.11338556,112460.0,112450.0,0.363]
[1757056678889,1.11138556,112460.0,112450.0,0.363]
[1757056679593,1.11138556,112460.0,112450.0,0.367]
[1757056680189,1.11138556,112460.0,112450.0,0.38906]
[1757056680390,0.88037,112460.0,112450.0,0.40229]
[1757056680594,1.10755556,112460.0,112450.0,0.40229]
[1757056680789,1.11138556,112460.0,112450.0,0.38906]
[1757056680993,1.11138556,112460.0,112450.0,0.367]
[1757056681396,1.36138556,112460.0,112450.0,0.367]
[1757056683794,1.36138556,112460.0,112450.0,0.004]
[1757056684496,1.72218556,112460.0,112440.0,0.361]
[1757056684698,0.25355556,112450.0,112440.0,0.361]
[1757056684892,0.25355556,112450.0,112440.0,0.3608]
[1757056685689,0.74505746,112450.0,112440.0,0.001]
[1757056685895,0.5140419,112450.0,112440.0,0.003]
[1757056687701,0.5140419,112450.0,112440.0,0.002]
[1757056692002,1.3669219,112450.0,112440.0,0.002]
[1757056694307,0.36473,112460.0,112450.0,0.03529]
[1757056694308,0.0001,112460.0,112450.0,0.03529]
[1757056694506,0.41124,112470.0,112460.0,0.02206]
[1757056694705,0.64668556,112470.0,112460.0,0.3608]
[1757056694902,0.65699017,112470.0,112460.0,0.3608]
[1757056696114,0.64868556,112470.0,112460.0,0.3608]
[1757056696715,0.41767,112470.0,112460.0,0.3608]
[1757056696904,0.64868556,112470.0,112460.0,0.3608]
[1757056697106,1.10803556,112470.0,112460.0,0.64676]
[1757056697415,1.10791556,112470.0,112460.0,0.64676]
[1757056697623,1.10891556,112470.0,112460.0,0.64676]
[1757056698615,0.8779,112470.0,112460.0,0.64676]
[1757056698816,1.10891556,112470.0,112460.0,0.64676]
[1757056701118,0.02901,112460.0,112450.0,0.361]
[1757056701322,0.26002556,112460.0,112450.0,0.3608]
[1757056701719,0.26002556,112460.0,112440.0,0.37643]
[1757056702023,1.10549556,112450.0,112440.0,0.39784]
[1757056702320,0.00204,112470.0,112460.0,0.03751]
[1757056702523,4e-05,112470.0,112460.0,0.75911]
[1757056703818,0.00104,112470.0,112460.0,0.75911]
[1757056704227,0.00104,112470.0,112460.0,1.32903396]
[1757056704419,0.00104,112470.0,112460.0,1.24012556]
[1757056705532,0.00104,112470.0,112460.0,1.00911]
[1757056705717,0.00104,112470.0,112460.0,1.01111]
[1757056706217,0.00104,112470.0,112460.0,1.08093774]
[1757056706423,4e-05,112470.0,112460.0,1.08293774]
[1757056707121,4e-05,112470.0,112460.0,0.83293774]
[1757056707326,0.0226,112470.0,112460.0,0.83073774]
[1757056707522,0.0226,112470.0,112460.0,0.83293774]
[1757056708726,4e-05,112500.0,112490.0,0.03531]
[1757056708926,0.0226,112500.0,112490.0,0.75691]
[1757056709830,0.29188871,112500.0,112490.0,0.75691]
[1757056710121,0.29188871,112500.0,112490.0,0.75911]
[1757056710731,0.29288871,112500.0,112490.0,0.75911]
[1757056711422,0.0237,112500.0,112490.0,0.75911]
[1757056711818,0.8749,112500.0,112490.0,0.75911]
[1757056712229,0.03887057,112500.0,112490.0,0.75911]
[1757056712420,0.05125057,112500.0,112490.0,0.75911]
[1757056713819,0.6264149,112500.0,112490.0,0.75691]
[1757056714024,0.6264149,112500.0,112480.0,0.377]
[1757056714225,0.32516433,112490.0,112480.0,0.39841]
[1757056714427,0.33554433,112490.0,112480.0,0.39831]
[1757056715629,0.06975357,112530.0,112500.0,0.0139]
[1757056715828,0.06975357,112530.0,112520.0,0.75911]
[1757056715829,0.01968329,112530.0,112520.0,0.75911]
[1757056716030,4e-05,112530.0,112520.0,0.75911]
[1757056716728,0.00304,112530.0,112520.0,0.75911]
[1757056717432,0.00204,112530.0,112520.0,1.01011]
[1757056718530,0.00204,112530.0,112520.0,1.0989708]
[1757056718835,4e-05,112530.0,112520.0,1.0999708]
[1757056719023,4e-05,112550.0,112540.0,0.03531]
[1757056719230,4e-05,112550.0,112540.0,0.75911]
[1757056720738,0.00104,112550.0,112540.0,1.00911]
[1757056721138,0.00104,112550.0,112540.0,1.07890219]
[1757056721739,0.001,112550.0,112540.0,1.07890219]
[1757056722039,0.0001,112560.0,112550.0,0.03531]
[1757056722341,0.0001,112570.0,112560.0,0.03751]
[1757056722536,0.01224,112580.0,112570.0,0.03531]
[1757056722730,0.01214,112580.0,112570.0,0.03531]
[1757056723432,0.01214,112580.0,112570.0,0.39611]
[1757056723835,4e-05,112580.0,112570.0,1.49647]
[1757056724143,0.00604,112580.0,112570.0,1.84254516]
[1757056724339,0.00604,112580.0,112570.0,1.93132666]
[1757056724536,0.0001,112590.0,112580.0,0.0022]
[1757056724737,0.00014,112600.0,112590.0,0.03531]
[1757056724944,4e-05,112600.0,112590.0,1.24643]
[1757056725141,4e-05,112600.0,112590.0,0.52890388]
[1757056725343,4e-05,112600.0,112590.0,1.37922388]
[1757056725640,4e-05,112600.0,112590.0,0.52890388]
[1757056725844,4e-05,112600.0,112590.0,1.37914388]
[1757056726142,4e-05,112600.0,112590.0,0.52890388]
[1757056726343,4e-05,112600.0,112590.0,1.37910388]
[1757056726546,0.00104,112600.0,112590.0,0.52890388]
[1757056727242,0.02281,112600.0,112590.0,0.39611]
[1757056727440,0.02281,112600.0,112590.0,0.39831]
[1757056727441,0.59997433,112600.0,112590.0,0.39831]
[1757056728347,0.27481,112600.0,112590.0,0.39831]
[1757056729047,0.59997433,112600.0,112590.0,0.39831]
[1757056733346,0.59997433,112600.0,112590.0,0.0139]
[1757056734043,0.59997433,112600.0,112580.0,0.3771]
[1757056734252,0.34618433,112590.0,112580.0,0.3771]
[1757056734455,0.34618433,112590.0,112580.0,0.3769]
[1757056734852,0.59618433,112590.0,112580.0,0.0139]
[1757056735054,0.34618433,112590.0,112580.0,0.39826]
[1757056736356,0.34718433,112590.0,112580.0,0.39826]
[1757056736755,0.34718433,112590.0,112580.0,0.3769]
[1757056738056,0.34718433,112590.0,112580.0,0.39826]
[1757056739651,0.60322433,112590.0,112570.0,0.39581083]
[1757056739853,0.34618433,112580.0,112570.0,0.41717083]
[1757056740058,0.34618433,112580.0,112570.0,0.41697083]
[1757056742059,0.34618433,112580.0,112570.0,0.41797083]
[1757056743454,0.34718433,112580.0,112570.0,0.41797083]
[1757056744052,0.34718433,112580.0,112570.0,0.41793083]
[1757056744555,0.59718433,112580.0,112570.0,0.001]
[1757056744751,1.80730433,112580.0,112570.0,0.001]
[1757056744946,0.95798433,112580.0,112570.0,0.001]
[1757056745153,1.80730433,112580.0,112570.0,0.001]
[1757056745347,1.82732572,112580.0,112570.0,0.001]
[1757056745546,1.80730433,112580.0,112570.0,0.001]
[1757056745756,1.82732573,112580.0,112570.0,0.001]
[1757056746164,0.65935866,112570.0,112540.0,0.01323]
[1757056746362,0.33419433,112550.0,112540.0,0.03459]
[1757056746555,0.00903,112550.0,112540.0,0.39539]
[1757056746761,0.85831,112560.0,112550.0,0.03459]
[1757056747150,0.00903,112560.0,112550.0,0.03459]
[1757056747352,0.85827,112560.0,112550.0,0.39539]
[1757056747862,0.85831,112560.0,112550.0,0.39539]
[1757056748362,1.18343433,112560.0,112550.0,0.03459]
[1757056749154,1.18543433,112560.0,112550.0,0.03459]
[1757056750562,1.18743433,112560.0,112550.0,0.03459]
[1757056751461,0.86219,112560.0,112550.0,0.03459]
[1757056751650,1.18735433,112560.0,112550.0,0.03459]
[1757056751849,0.33819433,112560.0,112550.0,0.03459]
[1757056752055,1.18731433,112560.0,112550.0,0.39539]
[1757056752256,0.004,112560.0,112550.0,0.64539]
[1757056752456,0.76004,112560.0,112550.0,0.64539]
[1757056752763,0.76907,112560.0,112550.0,0.64539]
[1757056753460,0.76707,112560.0,112550.0,0.64539]
[1757056753671,0.01203,112560.0,112550.0,0.64539]
[1757056754360,0.003,112560.0,112550.0,0.64539]
[1757056754662,0.001,112560.0,112550.0,0.64539]
[1757056754861,0.002,112560.0,112550.0,0.64539]
[1757056756066,0.01103,112560.0,112550.0,0.64539]
[1757056756362,0.002,112560.0,112550.0,0.64539]
[1757056756563,0.58619433,112560.0,112550.0,0.01323]
[1757056756760,0.58619433,112560.0,112550.0,0.03567]
[1757056757160,0.33619433,112560.0,112550.0,0.03567]
[1757056758856,0.01103,112560.0,112550.0,0.39647]
[1757056759263,0.01103,112560.0,112550.0,0.39643]
[1757056761176,0.002,112560.0,112550.0,0.39643]
[1757056762070,0.33626433,112560.0,112550.0,0.39643]
[1757056762266,0.0111,112560.0,112550.0,0.39643]
[1757056762773,0.002,112560.0,112550.0,0.39643]
[1757056764573,0.0111,112560.0,112550.0,0.39643]
[1757056765768,0.002,112560.0,112550.0,0.39643]
[1757056766873,0.002,112560.0,112550.0,0.97159433]
[1757056767276,0.002,112560.0,112550.0,1.03442594]
[1757056767775,0.002,112560.0,112550.0,0.70926161]
[1757056768479,0.33626433,112560.0,112550.0,0.39643]
[1757056769460,0.8595,112560.0,112550.0,0.39643]
[1757056769667,1.43466433,112560.0,112550.0,0.01319]
[1757056770265,1.43466433,112560.0,112540.0,0.37423]
[1757056770561,0.33426433,112550.0,112540.0,0.37423]
[1757056770764,0.33426433,112550.0,112540.0,0.39647]
[1757056771464,0.33426433,112550.0,112540.0,0.39747]
[1757056773065,0.58426433,112550.0,112540.0,0.39747]
[1757056773273,0.58426433,112550.0,112540.0,0.37503]
[1757056773566,0.58426433,112550.0,112540.0,0.001]
[1757056773567,0.52908442,112550.0,112540.0,0.001]
[1757056774264,0.53008442,112550.0,112540.0,0.00096]
[1757056774465,0.53008442,112550.0,112530.0,0.39508851]
[1757056774674,0.0091,112540.0,112530.0,0.39667]
[1757056774874,0.6465,112540.0,112530.0,0.39647]
[1757056776573,0.0091,112540.0,112530.0,0.39647]
[1757056776874,0.6465,112540.0,112530.0,0.39647]
[1757056777377,0.0101,112540.0,112530.0,0.39647]
[1757056777575,0.64646,112540.0,112530.0,0.39647]
[1757056777776,0.85914,112540.0,112530.0,0.39647]
[1757056777976,0.0111,112540.0,112530.0,0.39647]
[1757056778174,0.8591,112540.0,112530.0,0.39647]
[1757056778372,0.0111,112540.0,112530.0,0.39647]
[1757056778573,0.64738,112540.0,112530.0,0.39647]
[1757056779573,0.002,112540.0,112530.0,0.64647]
[1757056781576,0.0111,112540.0,112530.0,0.64647]
[1757056786679,0.0111,112540.0,112530.0,0.39647]
[1757056788875,0.002,112540.0,112530.0,0.39647]
[1757056789075,0.0111,112540.0,112530.0,0.39647]
[1757056789377,0.0111,112540.0,112530.0,0.39643]
[1757056793884,0.53008442,112540.0,112530.0,0.37399]
[1757056794279,0.53008442,112540.0,112530.0,0.39691]
[1757056794483,0.28008442,112540.0,112530.0,0.39691]
[1757056795187,0.29016301,112540.0,112530.0,0.39691]
[1757056797490,0.24218651,112540.0,112530.0,0.39691]
[1757056797990,1.08914651,112540.0,112530.0,0.39691]
[1757056798192,1.08914651,112540.0,112530.0,0.45974161]
[1757056798784,1.08914651,112540.0,112530.0,0.39691]
[1757056799583,1.08914651,112540.0,112520.0,0.43706161]
[1757056799888,0.24024651,112530.0,112520.0,0.43706161]
[1757056800096,0.24024651,112530.0,112520.0,0.43686161]
[1757056800294,0.24024651,112530.0,112520.0,0.37403]
[1757056800491,0.24024651,112530.0,112520.0,0.39695]
[1757056800891,1.08696651,112530.0,112520.0,0.45978161]
[1757056801087,1.93457302,112530.0,112520.0,0.06283161]
[1757056801282,1.70470072,112530.0,112510.0,0.0002]
[1757056801488,0.24024651,112520.0,112510.0,0.03576]
[1757056801686,0.24024651,112520.0,112510.0,0.03556]
[1757056801891,1.08692651,112520.0,112510.0,0.03556]
[1757056802287,0.24024651,112520.0,112510.0,0.03556]
[1757056802491,1.07776651,112520.0,112510.0,0.28556]
[1757056802696,1.07776651,112520.0,112510.0,0.28756]
[1757056803091,0.24034651,112530.0,112520.0,0.03556]
[1757056803392,0.24024651,112530.0,112520.0,0.39636]
[1757056804096,0.24024651,112530.0,112520.0,0.39632]
[1757056804296,1.07764651,112530.0,112520.0,0.39632]
[1757056804497,0.001,112530.0,112520.0,0.64632]
[1757056804896,0.001,112530.0,112520.0,0.70915161]
[1757056805200,0.002,112530.0,112520.0,0.95598596]
[1757056805394,0.0001,112540.0,112520.0,0.81375995]
[1757056805590,0.0001,112540.0,112530.0,0.47493945]
[1757056805789,0.0001,112550.0,112540.0,0.03556]
[1757056805990,0.0001,112560.0,112550.0,0.03556]
[1757056806207,0.0001,112570.0,112560.0,0.03556]
[1757056806498,0.85886,112570.0,112560.0,0.39636]
[1757056806693,0.01242,112570.0,112560.0,0.39636]
[1757056806994,1.98646506,112580.0,112560.0,0.39636]
[1757056806995,0.0001,112580.0,112570.0,0.03556]
[1757056807194,0.0001,112590.0,112580.0,0.03556]
[1757056807399,0.00014,112600.0,112590.0,0.03556]
[1757056807600,4e-05,112600.0,112590.0,0.70904339]
[1757056808491,4e-05,112600.0,112590.0,0.64636]
[1757056808690,0.00504,112600.0,112590.0,0.64636]
[1757056810702,0.00404,112600.0,112590.0,0.64636]
[1757056811202,0.00404,112600.0,112590.0,0.39636]
[1757056811398,0.00404,112600.0,112590.0,0.64636]
[1757056822810,0.00404,112600.0,112590.0,1.49136]
[1757056825505,0.00404,112600.0,112590.0,0.64636]
[1757056827212,0.00404,112600.0,112590.0,0.39636]
[1757056827403,0.00404,112600.0,112590.0,0.6271098]
[1757056827604,0.00404,112600.0,112590.0,0.39636]
[1757056828111,0.2347898,112600.0,112590.0,0.39636]
[1757056828413,0.00404,112600.0,112590.0,0.39636]
[1757056830708,0.00404,112600.0,112590.0,0.6271098]
[1757056831511,0.00404,112600.0,112590.0,0.39636]
[1757056831815,0.00404,112600.0,112590.0,0.6271098]
[1757056833106,0.00404,112600.0,112590.0,0.39636]
[1757056833807,0.00404,112600.0,112590.0,0.41738424]
[1757056834006,0.00404,112600.0,112590.0,0.64813404]
[1757056834916,0.00404,112600.0,112590.0,0.41738424]
[1757056835415,0.00404,112600.0,112590.0,0.67699077]
[1757056836412,0.00404,112600.0,112590.0,0.73967416]
[1757056840321,0.00404,112600.0,112590.0,0.99928069]
[1757056840718,0.0001,112610.0,112590.0,0.99928069]
[1757056841011,0.0001,112610.0,112600.0,0.65716653]
[1757056841219,0.0001,112620.0,112610.0,0.03676]
[1757056841418,0.27849653,112620.0,112610.0,0.39756]
[1757056842117,0.52849653,112620.0,112610.0,0.65716653]
[1757056842324,0.00014,112630.0,112620.0,0.03676]
[1757056842520,0.27972353,112630.0,112620.0,0.39756]
[1757056842722,0.29861353,112630.0,112620.0,0.39756]
[1757056843019,1.79861353,112630.0,112620.0,0.39756]
[1757056843222,1.520117,112630.0,112620.0,0.39756]
[1757056843524,1.79861353,112630.0,112620.0,0.39756]
[1757056844227,1.520117,112630.0,112620.0,0.39756]
[1757056844416,0.00404,112630.0,112620.0,0.67796653]
[1757056844611,0.26364653,112630.0,112620.0,0.41836]
[1757056844816,0.00404,112630.0,112620.0,0.67796653]
[1757056845022,0.26364653,112630.0,112620.0,0.67796653]
[1757056845523,0.26364653,112630.0,112620.0,0.41836]
[1757056846316,0.26364653,112630.0,112620.0,0.67796653]
[1757056847115,0.26364653,112630.0,112620.0,0.41836]
[1757056847316,0.26364653,112630.0,112620.0,0.67796653]
[1757056847922,0.00404,112630.0,112620.0,0.67796653]
[1757056848320,0.26364653,112630.0,112620.0,0.41836]
[1757056848525,0.00404,112630.0,112620.0,0.67796653]
[1757056849223,0.00404,112630.0,112620.0,0.41836]
[1757056849429,0.00404,112630.0,112620.0,0.67796653]
[1757056849617,0.00404,112630.0,112620.0,0.41836]
[1757056850020,0.26364653,112630.0,112620.0,0.41836]
[1757056850220,0.26364653,112630.0,112620.0,0.67796653]
[1757056850419,0.00404,112630.0,112620.0,0.67796653]
[1757056850627,0.00404,112630.0,112620.0,0.41836]
[1757056850826,0.00404,112630.0,112620.0,0.67796653]
[1757056851236,0.00404,112630.0,112620.0,0.41836]
[1757056851421,0.26364653,112630.0,112620.0,0.67796653]
[1757056852527,0.00404,112630.0,112620.0,0.67796653]
[1757056852927,0.26364653,112630.0,112620.0,0.67796653]
[1757056853226,0.53253653,112630.0,112620.0,0.41836]
[1757056854327,0.27293,112630.0,112620.0,0.41836]
[1757056854527,0.53253653,112630.0,112620.0,0.42182]
[1757056855728,0.27293,112630.0,112620.0,0.42182]
[1757056855924,0.53253653,112630.0,112620.0,0.42182]
[1757056856328,0.27293,112630.0,112620.0,0.42182]
[1757056856520,0.02293,112630.0,112620.0,0.42182]
[1757056856720,0.00404,112630.0,112620.0,0.42182]
[1757056856920,0.26364653,112630.0,112620.0,0.42182]
[1757056857128,0.28253653,112630.0,112620.0,0.42182]
[1757056858626,0.26364653,112630.0,112620.0,0.42182]
[1757056859220,0.26364653,112630.0,112620.0,0.68142653]
[1757056859425,0.0001,112640.0,112630.0,0.01382]
[1757056859727,0.06689148,112660.0,112650.0,0.01382]
[1757056859923,0.32639801,112660.0,112650.0,0.39677]
[1757056860126,0.05979148,112660.0,112650.0,0.97622129]
[1757056860316,0.02479148,112660.0,112650.0,2.50203121]
[1757056860516,0.02479148,112660.0,112650.0,2.43934782]
[1757056860827,0.00014,112680.0,112670.0,0.03597]
[1757056861025,0.02337204,112690.0,112680.0,0.03597]
[1757056861219,0.00819637,112770.0,112680.0,1.29664064]
[1757056861422,0.05601601,112770.0,112750.0,0.39677]
[1757056861720,4e-05,112780.0,112770.0,0.03597]
[1757056862030,4e-05,112780.0,112770.0,0.39677]
[1757056862719,4e-05,112780.0,112770.0,0.97045038]
[1757056863230,0.0100541,112790.0,112780.0,0.03597]
[1757056863423,0.0100541,112790.0,112780.0,0.39677]
[1757056863626,0.0100541,112790.0,112780.0,0.97045038]
[1757056863817,0.00014,112830.0,112820.0,0.03597]
[1757056864021,0.00014,112830.0,112810.0,0.3609]
[1757056864022,0.01329,112820.0,112810.0,0.3609]
[1757056864220,0.03532,112820.0,112810.0,0.3608]
[1757056864419,0.28532,112820.0,112810.0,0.38295]
[1757056864723,0.03536,112830.0,112820.0,0.02215]
[1757056864924,0.28532,112820.0,112810.0,0.3609]
[1757056865128,1.46736038,112820.0,112810.0,0.3608]
[1757056865430,0.03532,112810.0,112800.0,0.0001]
[1757056865617,0.03532,112800.0,112790.0,0.38305]
[1757056865819,0.28532,112800.0,112790.0,0.38295]
[1757056866018,0.03532,112790.0,112780.0,0.0001]
[1757056866240,0.03532,112790.0,112770.0,0.3609]
[1757056866241,0.03532,112780.0,112770.0,0.3609]
[1757056866423,0.89416,112780.0,112770.0,0.3608]
[1757056866729,1.21784038,112780.0,112770.0,0.3608]
[1757056867119,0.03532,112770.0,112760.0,0.0001]
[1757056867320,0.03532,112760.0,112750.0,0.0001]
[1757056867526,0.03089,112750.0,112740.0,0.3609]
[1757056867730,0.03532,112740.0,112730.0,0.0001]
[1757056867921,1.21860038,112740.0,112720.0,0.3609]
[1757056868125,1.21864038,112740.0,112730.0,0.3608]
[1757056868327,0.03532,112730.0,112720.0,0.0001]
[1757056868528,0.03532,112730.0,112710.0,0.3609]